fUSD/lending_fUSD_20250222
["ID","MTS","AMOUNT","RATE_DAILY","PERIOD"]
[354042182,1740197441203,-500.0,0.00011122,2]
[354042183,1740197441212,-348.10298778,0.00011122,2]
[354042184,1740197441222,-500.0,0.00011122,2]
[354042185,1740197441231,-500.0,0.00011122,2]
[354042186,1740197441240,-500.0,0.00011122,2]
[354042187,1740197441250,-526.12,0.00011122,2]
[354042188,1740197441260,-500.0,0.00011122,2]
[354042189,1740197441270,-500.0,0.00011122,2]
[354042190,1740197441279,-506.36,0.00011122,2]
[354042191,1740197441288,-500.0,0.00011122,2]
[354042192,1740197441298,-500.0,0.00011122,2]
[354042193,1740197441307,-1101.33,0.00011122,2]
[354042194,1740197441316,-500.0,0.00011122,2]
[354042195,1740197441326,-462.57619351,0.00011122,2]
[354042196,1740197441336,-500.0,0.00011122,2]
[354042197,1740197441345,-500.0,0.00011122,2]
[354042198,1740197441357,-500.0,0.00011122,2]
[354042199,1740197441366,-500.0,0.00011122,2]
[354042200,1740197441376,-500.0,0.00011122,2]
[354042201,1740197441385,-500.0,0.00011122,2]
[354042202,1740197441395,-500.0,0.00011122,2]
[354042203,1740197441404,-500.0,0.00011122,2]
[354042204,1740197441413,-500.0,0.00011122,2]
[354042205,1740197441422,-500.0,0.00011122,2]
[354042206,1740197441431,-500.0,0.00011122,2]
[354042207,1740197441441,-500.0,0.00011122,2]
[354042208,1740197441451,-614.8,0.00011122,2]
[354042209,1740197441460,-500.0,0.00011122,2]
[354042210,1740197441469,-500.0,0.00011122,2]
[354042211,1740197441479,-500.0,0.00011122,2]
[354042212,1740197441488,-500.0,0.00011122,2]
[354042213,1740197441497,-510.42,0.00011122,2]
[354042214,1740197441507,-500.0,0.00011122,2]
[354042215,1740197441516,-500.0,0.00011122,2]
[354042216,1740197441525,-500.0,0.00011122,2]
[354042217,1740197441534,-500.0,0.00011122,2]
[354042218,1740197441544,-274.45105772,0.00011122,2]
[354042219,1740197441557,-225.54894228,0.00011122,2]
[354042220,1740197441566,-704.52,0.00011122,2]
[354042221,1740197441576,-500.0,0.00011122,2]
[354042222,1740197441585,-500.0,0.00011122,2]
[354042223,1740197441595,-500.0,0.00011122,2]
[354042224,1740197441604,-500.0,0.00011122,2]
[354042225,1740197441613,-500.0,0.00011122,2]
[354042226,1740197441622,-500.0,0.00011122,2]
[354042227,1740197441631,-500.0,0.00011122,2]
[354042228,1740197441641,-359.64204026,0.00011122,2]
[354042229,1740197441650,-500.0,0.00011122,2]
[354042230,1740197441660,-500.0,0.00011122,2]
[354042231,1740197441670,-500.0,0.00011122,2]
[354042232,1740197441679,-500.0,0.00011122,2]
[354042233,1740197441688,-500.0,0.00011122,2]
[354042234,1740197441698,-500.0,0.00011122,2]
[354042235,1740197441707,-500.0,0.00011122,2]
[354042236,1740197441717,-500.0,0.00011122,2]
[354042237,1740197441726,-500.0,0.00011122,2]
[354042238,1740197441735,-500.0,0.00011122,2]
[354042239,1740197441745,-500.0,0.00011122,2]
[354042240,1740197441755,-518.97,0.00011122,2]
[354042241,1740197441764,-500.0,0.00011122,2]
[354042242,1740197441773,-562.61,0.00011122,2]
[354042243,1740197441783,-163.55756946,0.00011122,2]
[354042248,1740197443491,-336.44243054,0.00011122,2]
[354042249,1740197443500,-500.0,0.00011122,2]
[354042250,1740197443510,-500.0,0.00011122,2]
[354042251,1740197443519,-8.36243414,0.00011122,2]
[354042252,1740197443544,-254.39513532,0.00011122,2]
[354042258,1740197446369,-743.77510132,0.00011122,2]
[354042259,1740197446426,-542.23732922,0.00011122,2]
[354042260,1740197446436,-66.59800149,0.00011122,2]
[354042265,1740197632907,1151.92,8.336e-05,2]
[354042271,1740198274857,4392.76334048,0.00020135,120]
[354042303,1740198631748,-250.0,9.791e-05,2]
[354042304,1740198631757,-203.89,9.959e-05,2]
[354042305,1740198631766,-300.0,9.998e-05,2]
[354042306,1740198631775,-98.19,9.999e-05,2]
[354042307,1740198631803,-51.81,9.999e-05,2]
[354042308,1740198631813,-158.88253412,9.999e-05,2]
[354042309,1740198631822,-500.0,9.999e-05,2]
[354042310,1740198631831,-440.69452356,9.999e-05,2]
[354042311,1740198631840,-500.0,9.999e-05,2]
[354042312,1740198631849,-500.0,9.999e-05,2]
[354042313,1740198631858,-350.0,9.999e-05,2]
[354042314,1740198631868,-500.0,9.999e-05,2]
[354042315,1740198631877,-44388.82526685,0.0001,2]
[354042316,1740198631888,-211209.28002271,0.0001,2]
[354042379,1740198637512,-3810.10225134,0.0001,2]
[354042385,1740198639890,-404.49499999,0.0001,2]
[354042386,1740198640054,-548.69447081,0.0001,2]
[354042588,1740198642642,-344.94220916,0.0001,2]
[354042592,1740198645806,-7321.95849467,0.0001,2]
[354042593,1740198645818,-68996.68266054,0.0001,2]
[354042594,1740198645829,-775.72927934,0.0001,2]
[354042595,1740198645846,-2979.16369855,0.0001,2]
[354042603,1740198901812,1094.32,8.219e-05,2]
[354042604,1740199136423,3227.846103,9.49e-05,2]
[354042605,1740199163475,2000.0,9.407e-05,2]
[354042607,1740199222960,1167.22,9.4e-05,2]
[354042608,1740199452486,700.36,9.323e-05,2]
[354042610,1740199465043,519.04,8.767e-05,2]
[354042612,1740199509918,250.0,9.249e-05,2]
[354042628,1740199818222,171.16,7.396e-05,2]
[354042629,1740199831765,-1500.0,9.539e-05,2]
[354042630,1740199831775,-347.98,9.54e-05,2]
[354042631,1740199831785,-500.0,9.562e-05,2]
[354042632,1740199831794,-155.63015719,9.562e-05,2]
[354042633,1740199831804,-300.0,9.578e-05,2]
[354042634,1740199831814,-198.43633295,9.579e-05,2]
[354042635,1740199831827,-565.5527439,9.579e-05,2]
[354042636,1740199831840,-236.01092315,9.579e-05,2]
[354042637,1740199831850,-2501.32400146,9.643e-05,2]
[354042638,1740199831862,-1587.35583697,9.643e-05,2]
[354042639,1740199831874,-1933.82557355,9.643e-05,2]
[354042640,1740199831886,-17867.49458802,9.643e-05,2]
[354042641,1740199831896,-891.319,9.732e-05,2]
[354042642,1740199831905,-300.0,9.732e-05,2]
[354042643,1740199831914,-170.21,9.779e-05,2]
[354042644,1740199831924,-987.27,9.78e-05,2]
[354042645,1740199831933,-986.58,9.78e-05,2]
[354042646,1740199831942,-150.0,9.78e-05,2]
[354042647,1740199831951,-300.0,9.78e-05,2]
[354042648,1740199831961,-178.44,9.793e-05,2]
[354042649,1740199831970,-2000.0,9.797e-05,2]
[354042650,1740199831979,-1551.52,9.8e-05,2]
[354042651,1740199831990,-150.0,9.999e-05,2]
[354042652,1740199832000,-376.86446905,9.999e-05,2]
[354042653,1740199832009,-345707.35527784,0.0001,2]
[354042654,1740199832020,-295.63804909,0.0001,2]
[354042655,1740199832032,-1257.00900009,0.0001,2]
[354042656,1740199832058,-1998.10131452,0.0001,2]
[354042756,1740199837744,-437.70943335,0.0001,2]
[354042757,1740199837800,-376.0213201,0.0001,2]
[354042758,1740199837812,-302.5370427,0.0001,2]
[354042759,1740199837963,-3391.46814228,0.0001,2]
[354042760,1740199837975,-5400.47753022,0.0001,2]
[354042761,1740199837986,-476.81295156,0.0001,2]
[354042765,1740199840149,-358.8680473,0.0001,2]
[354042766,1740199840308,-3460.06,0.0001,2]
[354043005,1740199842880,-644.73,0.0001,2]
[354043006,1740199842892,-19666.89131743,0.0001,2]
[354043007,1740199842913,-12769.56603016,0.0001,2]
[354043008,1740199842968,-68683.49439979,0.0001,2]
[354043009,1740199842981,-360.004999,0.0001,2]
[354043010,1740199843024,-40933.98378323,0.0001,2]
[354043011,1740199843034,-550.0,0.0001,2]
[354043012,1740199843043,-180.79307509,0.0001,2]
[354043013,1740199843052,-136505.09656655,0.0001,2]
[354043014,1740199843062,-26790.08207962,0.0001,2]
[354043015,1740199843080,-958.930518,0.0001,2]
[354043021,1740199845702,-2000.0,0.0001,2]
[354043023,1740199845714,-36633.57798922,0.0001,2]
[354043028,1740199845760,-287.54806406,0.0001,2]
[354043032,1740199845815,-931.84999995,0.0001,2]
[354043033,1740199845874,-7414.08194455,0.0001,2]
[354043034,1740199846091,-703.32261112,0.0001,2]
[354043038,1740199990562,-100111.0,0.000133,7]
[354043039,1740200068538,1081.08,8.219e-05,2]
[354043043,1740200635435,154.82,8.767e-05,2]
[354043052,1740201031977,-541.345,9.592e-05,2]
[354043053,1740201031989,-1458.655,9.592e-05,2]
[354043054,1740201031999,-500.0,9.599e-05,2]
[354043055,1740201032008,-500.0,9.601e-05,2]
[354043056,1740201032018,-200.0,9.603e-05,2]
[354043057,1740201032028,-526.66,9.605e-05,2]
[354043058,1740201032038,-5269.61347332,9.605e-05,2]
[354043059,1740201032274,-795.57,9.605e-05,2]
[354043060,1740201032285,-882.76058327,9.605e-05,2]
[354043061,1740201032295,-300.0,9.607e-05,2]
[354043062,1740201032304,-170.62857643,9.608e-05,2]
[354043063,1740201032314,-197.58,9.608e-05,2]
[354043064,1740201032323,-463.85,9.615e-05,2]
[354043065,1740201032334,-250.0,9.627e-05,2]
[354043066,1740201032343,-439.14,9.636e-05,2]
[354043067,1740201032353,-174.06,9.638e-05,2]
[354043068,1740201032363,-1500.0,9.707e-05,2]
[354043069,1740201032372,-549.59,9.721e-05,2]
[354043070,1740201032382,-180.78,9.751e-05,2]
[354043071,1740201032391,-486.58,9.76e-05,2]
[354043072,1740201032400,-305.0308403,9.766e-05,2]
[354043073,1740201032422,-694.9691597,9.766e-05,2]
[354043074,1740201032431,-96.03295218,9.776e-05,2]
[354043075,1740201032450,-549.00704782,9.776e-05,2]
[354043076,1740201032458,-300.0,9.778e-05,2]
[354043077,1740201032467,-81.9908403,9.778e-05,2]
[354043583,1740201037927,-68.0091597,9.778e-05,2]
[354043586,1740201037936,-437.64,9.778e-05,2]
[354043588,1740201037945,-150.0,9.778e-05,2]
[354043590,1740201037955,-180.78,9.881e-05,2]
[354043592,1740201037965,-168.05,9.882e-05,2]
[354043594,1740201037974,-150.0,9.896e-05,2]
[354043596,1740201037983,-150.0,9.999e-05,2]
[354043598,1740201037992,-5105.34476591,0.0001,2]
[354043601,1740201038018,-630.69068571,0.0001,2]
[354043603,1740201038029,-4087.13897112,0.0001,2]
[354043607,1740201038048,-511.17103011,0.0001,2]
[354043609,1740201038059,-1409.06776674,0.0001,2]
[354043611,1740201038068,-1455.81331977,0.0001,2]
[354043615,1740201038097,-1860.04352126,0.0001,2]
[354043617,1740201038108,-1814.03961151,0.0001,2]
[354043623,1740201038154,-1613.64514911,0.0001,2]
[354043625,1740201038165,-3882.97017492,0.0001,2]
[354043631,1740201038210,-344.40407268,0.0001,2]
[354043851,1740201040262,-8608.20780509,0.0001,2]
[354043853,1740201040272,-488.43592605,0.0001,2]
[354043856,1740201040283,-1883.71250395,0.0001,2]
[354043858,1740201040293,-180.78,0.00010011,2]
[354043860,1740201040303,-180.78,0.00010141,2]
[354043861,1740201040312,-190.57,0.00010168,2]
[354043863,1740201040321,-150.0,0.00010178,2]
[354043866,1740201040332,-986.97,0.00010178,2]
[354043868,1740201040341,-150.0,0.00010269,2]
[354043870,1740201040350,-346.84599533,0.00010289,2]
[354043872,1740201040360,-150.0,0.000104,2]
[354043873,1740201040369,-987.36,0.000104,2]
[354043876,1740201040379,-168.05,0.00010425,2]
[354043878,1740201040388,-1081.08,0.00010464,2]
[354043879,1740201040397,-700.36,0.00010488,2]
[354043881,1740201040407,-150.0,0.00010514,2]
[354043884,1740201040416,-150.0,0.00010552,2]
[354043886,1740201040426,-500.0,0.00010552,2]
[354043888,1740201040435,-150.0,0.00010556,2]
[354043890,1740201040444,-150.0,0.00010559,2]
[354043892,1740201040453,-150.0,0.00010559,2]
[354043893,1740201040462,-500.0,0.00010559,2]
[354043895,1740201040471,-40.71029545,0.00010567,2]
[354043898,1740201040483,-306.13569988,0.00010567,2]
[354043900,1740201040492,-420.0,0.00010568,2]
[354043902,1740201040502,-383.753,0.00010575,2]
[354043903,1740201040511,-185.66741918,0.00010578,2]
[354043905,1740201040520,-150.0,0.00010578,2]
[354043907,1740201040529,-150.95643318,0.00010578,2]
[354043909,1740201040539,-150.0,0.00010578,2]
[354043911,1740201040548,-150.0,0.00010578,2]
[354043913,1740201040557,-185.66741918,0.0001059,2]
[354043915,1740201040566,-185.66741918,0.00010602,2]
[354043917,1740201040575,-150.0,0.00010612,2]
[354043919,1740201040584,-185.66741918,0.00010614,2]
[354043921,1740201040593,-150.0,0.00010616,2]
[354043923,1740201040603,-185.66741918,0.00010626,2]
[354043925,1740201040612,-185.66741918,0.00010637,2]
[354043927,1740201040622,-150.0,0.00010645,2]
[354043929,1740201040630,-185.66741918,0.00010649,2]
[354043931,1740201040640,-150.0,0.00010654,2]
[354043933,1740201040650,-150.0,0.00010656,2]
[354043935,1740201040659,-185.66741918,0.00010661,2]
[354043937,1740201040668,-150.0,0.00010679,2]
[354043939,1740201040677,-150.0,0.00010682,2]
[354043941,1740201040687,-150.0,0.00010692,2]
[354043943,1740201040696,-150.0,0.00010712,2]
[354043945,1740201040705,-150.0,0.00010718,2]
[354043947,1740201040714,-150.0,0.0001073,2]
[354043949,1740201040724,-150.0,0.00010735,2]
[354043951,1740201040733,-150.0,0.00010738,2]
[354043953,1740201040742,-150.0,0.00010746,2]
[354043955,1740201040752,-150.0,0.00010768,2]
[354043957,1740201040761,-150.0,0.0001078,2]
[354043959,1740201040770,-700.0,0.000108,3]
[354043961,1740201040779,-150.0,0.00010806,2]
[354043963,1740201040788,-150.0,0.00010813,2]
[354043965,1740201040797,-150.0,0.00010813,2]
[354043967,1740201040806,-150.0,0.00010824,2]
[354043968,1740201040815,-439.14,0.00010841,2]
[354043970,1740201040824,-150.0,0.00010843,2]
[354043972,1740201040833,-150.0,0.00010847,2]
[354043974,1740201040842,-150.0,0.00010868,2]
[354043976,1740201040851,-150.0,0.0001088,2]
[354043978,1740201040860,-150.0,0.00010881,2]
[354043980,1740201040870,-150.0,0.00010888,2]
[354043982,1740201040879,-150.0,0.00010892,2]
[354043984,1740201040888,-150.0,0.00010892,2]
[354043986,1740201040897,-408.45937812,0.000109,3]
[354043989,1740201040910,-1091.54062188,0.000109,3]
[354043991,1740201040919,-214.05708763,0.000109,2]
[354043993,1740201040928,-150.0,0.00010914,2]
[354043995,1740201040937,-150.0,0.00010919,2]
[354043997,1740201040946,-169.35015457,0.00010941,2]
[354043999,1740201040955,-150.0,0.00010947,2]
[354044001,1740201040964,-346.84599533,0.00010949,2]
[354044003,1740201040973,-150.0,0.00010957,2]
[354044005,1740201040982,-500.0,0.00010958,2]
[354044007,1740201040991,-500.0,0.00010958,2]
[354044009,1740201041000,-500.0,0.00010958,2]
[354044011,1740201041010,-374.24628104,0.00010958,2]
[354044013,1740201041019,-500.0,0.00010958,2]
[354044015,1740201041029,-500.0,0.00010958,2]
[354044017,1740201041038,-500.0,0.00010958,2]
[354044019,1740201041047,-500.0,0.00010958,2]
[354044020,1740201041057,-295.75147043,0.00010958,2]
[354044022,1740201041066,-500.0,0.00010958,2]
[354044024,1740201041075,-500.0,0.00010958,2]
[354044026,1740201041085,-500.0,0.00010958,2]
[354044028,1740201041095,-500.0,0.00010958,2]
[354044031,1740201041104,-485.75705064,0.00010958,2]
[354044033,1740201041117,-14.24294936,0.00010958,2]
[354044035,1740201041127,-500.0,0.00010958,2]
[354044037,1740201041136,-500.0,0.00010958,2]
[354044039,1740201041146,-500.0,0.00010958,2]
[354044041,1740201041155,-500.0,0.00010958,2]
[354044043,1740201041165,-500.0,0.00010958,2]
[354044045,1740201041174,-500.0,0.00010958,2]
[354044047,1740201041183,-500.0,0.00010958,2]
[354044049,1740201041193,-500.0,0.00010958,2]
[354044051,1740201041203,-500.0,0.00010958,2]
[354044053,1740201041212,-500.0,0.00010958,2]
[354044055,1740201041221,-500.0,0.00010958,2]
[354044057,1740201041231,-500.0,0.00010958,2]
[354044059,1740201041240,-500.0,0.00010958,2]
[354044061,1740201041249,-500.0,0.00010958,2]
[354044063,1740201041261,-500.0,0.00010958,2]
[354044065,1740201041270,-500.0,0.00010958,2]
[354044067,1740201041280,-500.0,0.00010958,2]
[354044069,1740201041289,-429.59728553,0.00010958,2]
[354044095,1740201041516,-70.40271447,0.00010958,2]
[354044097,1740201041526,-500.0,0.00010958,2]
[354044099,1740201041536,-500.0,0.00010958,2]
[354044101,1740201041545,-500.0,0.00010958,2]
[354044103,1740201041555,-500.0,0.00010958,2]
[354044105,1740201041564,-58.39442385,0.00010958,2]
[354044107,1740201041575,-195.2778429,0.00010958,2]
[354044109,1740201041585,-150.0,0.00010959,2]
[354044111,1740201041594,-168.05,0.00010969,2]
[354044113,1740201041603,-150.0,0.0001097,2]
[354044115,1740201041612,-150.0,0.00010981,2]
[354044117,1740201041621,-4.99249865,0.00010983,2]
[354044119,1740201041632,-341.85349668,0.00010983,2]
[354044121,1740201041642,-198.4977833,0.00010987,2]
[354044191,1740201042372,-801.5022167,0.00010987,2]
[354044193,1740201042381,-150.0,0.00010995,2]
[354044195,1740201042390,-150.0,0.00010997,2]
[354044197,1740201042399,-714.9660584,0.00010999,2]
[354044199,1740201042407,-226.0,0.00010999,2]
[354044201,1740201042416,-655.5717707,0.00011,2]
[354044203,1740201042425,-150.0,0.00011015,2]
[354044205,1740201042434,-500.0,0.00011033,2]
[354044207,1740201042442,-2000.0,0.00011033,2]
[354044209,1740201042451,-500.0,0.00011033,2]
[354044211,1740201042460,-200.0,0.00011033,2]
[354044213,1740201042468,-150.0,0.00011033,2]
[354044215,1740201042477,-150.0,0.00011038,2]
[354044217,1740201042486,-569.788514,0.0001104,2]
[354044219,1740201042495,-651.403944,0.0001104,2]
[354044221,1740201042503,-500.0,0.0001104,2]
[354044223,1740201042512,-500.0,0.0001104,2]
[354044225,1740201042520,-500.0,0.0001104,2]
[354044227,1740201042529,-293.01445629,0.0001104,2]
[354044229,1740201042538,-500.0,0.0001104,2]
[354044231,1740201042547,-500.0,0.0001104,2]
[354044233,1740201042556,-505.66531627,0.0001104,2]
[354044235,1740201042565,-500.0,0.0001104,2]
[354044237,1740201042573,-500.0,0.0001104,2]
[354044239,1740201042582,-500.0,0.0001104,2]
[354044241,1740201042591,-500.0,0.0001104,2]
[354044243,1740201042599,-500.0,0.0001104,2]
[354044245,1740201042608,-500.0,0.0001104,2]
[354044247,1740201042617,-500.0,0.0001104,2]
[354044249,1740201042627,-500.0,0.0001104,2]
[354044251,1740201042636,-500.0,0.0001104,2]
[354044253,1740201042645,-500.0,0.0001104,2]
[354044255,1740201042654,-500.0,0.0001104,2]
[354044257,1740201042663,-500.0,0.0001104,2]
[354044259,1740201042672,-500.0,0.0001104,2]
[354044261,1740201042681,-500.0,0.0001104,2]
[354044263,1740201042690,-500.0,0.0001104,2]
[354044265,1740201042699,-500.0,0.0001104,2]
[354044267,1740201042708,-500.0,0.0001104,2]
[354044269,1740201042716,-500.0,0.0001104,2]
[354044271,1740201042725,-500.0,0.0001104,2]
[354044273,1740201042734,-500.0,0.0001104,2]
[354044275,1740201042743,-500.0,0.0001104,2]
[354044277,1740201042752,-500.0,0.0001104,2]
[354044279,1740201042761,-500.0,0.0001104,2]
[354044281,1740201042770,-500.0,0.0001104,2]
[354044283,1740201042779,-500.0,0.0001104,2]
[354044285,1740201042788,-500.0,0.0001104,2]
[354044287,1740201042796,-500.0,0.0001104,2]
[354044289,1740201042805,-500.0,0.0001104,2]
[354044291,1740201042815,-500.0,0.0001104,2]
[354044293,1740201042824,-500.0,0.0001104,2]
[354044295,1740201042833,-500.0,0.0001104,2]
[354044297,1740201042842,-500.0,0.0001104,2]
[354044299,1740201042851,-500.0,0.0001104,2]
[354044301,1740201042860,-500.0,0.0001104,2]
[354044303,1740201042869,-500.0,0.0001104,2]
[354044305,1740201042878,-500.0,0.0001104,2]
[354044307,1740201042887,-500.0,0.0001104,2]
[354044310,1740201042896,-634.13805075,0.0001104,2]
[354044312,1740201042905,-500.0,0.0001104,2]
[354044314,1740201042914,-500.0,0.0001104,2]
[354044316,1740201042922,-500.0,0.0001104,2]
[354044318,1740201042931,-500.0,0.0001104,2]
[354044320,1740201042940,-233.62296971,0.0001104,2]
[354044322,1740201042949,-500.0,0.0001104,2]
[354044325,1740201042958,-500.0,0.0001104,2]
[354044328,1740201042967,-500.0,0.0001104,2]
[354044330,1740201042976,-500.0,0.0001104,2]
[354044332,1740201042985,-500.0,0.0001104,2]
[354044334,1740201042994,-500.0,0.0001104,2]
[354044336,1740201043003,-500.0,0.0001104,2]
[354044338,1740201043012,-500.0,0.0001104,2]
[354044340,1740201043021,-500.0,0.0001104,2]
[354044342,1740201043030,-500.0,0.0001104,2]
[354044343,1740201043039,-500.0,0.0001104,2]
[354044346,1740201043049,-500.0,0.0001104,2]
[354044348,1740201043058,-500.0,0.0001104,2]
[354044350,1740201043067,-500.0,0.0001104,2]
[354044352,1740201043077,-360.26,0.0001104,2]
[354044353,1740201043086,-553.06,0.0001104,2]
[354044355,1740201043095,-432.89472915,0.0001104,2]
[354044357,1740201043104,-500.0,0.0001104,2]
[354044359,1740201043113,-500.0,0.0001104,2]
[354044361,1740201043122,-500.0,0.0001104,2]
[354044364,1740201043132,-500.0,0.0001104,2]
[354044366,1740201043142,-500.0,0.0001104,2]
[354044367,1740201043151,-500.0,0.0001104,2]
[354044370,1740201043161,-500.0,0.0001104,2]
[354044372,1740201043170,-500.0,0.0001104,2]
[354044374,1740201043179,-411.33603826,0.0001104,2]
[354044376,1740201043188,-513.52019362,0.0001104,2]
[354044378,1740201043197,-500.0,0.0001104,2]
[354044380,1740201043206,-500.0,0.0001104,2]
[354044381,1740201043215,-500.0,0.0001104,2]
[354044383,1740201043224,-500.0,0.0001104,2]
[354044385,1740201043233,-500.0,0.0001104,2]
[354044387,1740201043242,-500.0,0.0001104,2]
[354044389,1740201043252,-500.0,0.0001104,2]
[354044391,1740201043263,-500.0,0.0001104,2]
[354044393,1740201043272,-500.0,0.0001104,2]
[354044395,1740201043281,-500.0,0.0001104,2]
[354044397,1740201043290,-500.0,0.0001104,2]
[354044399,1740201043299,-500.0,0.0001104,2]
[354044401,1740201043309,-500.0,0.0001104,2]
[354044403,1740201043318,-500.0,0.0001104,2]
[354044405,1740201043327,-915.08,0.0001104,2]
[354044407,1740201043338,-500.0,0.0001104,2]
[354044409,1740201043347,-500.0,0.0001104,2]
[354044411,1740201043357,-500.0,0.0001104,2]
[354044413,1740201043366,-809.4,0.0001104,2]
[354044415,1740201043374,-500.0,0.0001104,2]
[354044417,1740201043383,-500.0,0.0001104,2]
[354044419,1740201043393,-550.31,0.0001104,2]
[354044421,1740201043402,-500.0,0.0001104,2]
[354044423,1740201043411,-500.0,0.0001104,2]
[354044425,1740201043420,-811.69,0.0001104,2]
[354044427,1740201043429,-551.36,0.0001104,2]
[354044429,1740201043438,-500.0,0.0001104,2]
[354044431,1740201043447,-688.01,0.0001104,2]
[354044433,1740201043456,-582.41,0.0001104,2]
[354044435,1740201043465,-500.0,0.0001104,2]
[354044437,1740201043474,-500.0,0.0001104,2]
[354044439,1740201043483,-500.0,0.0001104,2]
[354044441,1740201043492,-500.0,0.0001104,2]
[354044443,1740201043500,-500.0,0.0001104,2]
[354044445,1740201043510,-2756.97,0.0001104,2]
[354044447,1740201043518,-500.0,0.0001104,2]
[354044450,1740201043527,-500.0,0.0001104,2]
[354044452,1740201043536,-500.0,0.0001104,2]
[354044454,1740201043546,-500.0,0.0001104,2]
[354044456,1740201043556,-509.59663665,0.0001104,2]
[354044459,1740201043565,-598.11,0.0001104,2]
[354044461,1740201043575,-590.19047487,0.0001104,2]
[354044462,1740201043584,-500.0,0.0001104,2]
[354044464,1740201043593,-500.0,0.0001104,2]
[354044467,1740201043603,-500.0,0.0001104,2]
[354044468,1740201043612,-500.0,0.0001104,2]
[354044470,1740201043621,-500.0,0.0001104,2]
[354044471,1740201043630,-500.0,0.0001104,2]
[354044472,1740201043639,-500.0,0.0001104,2]
[354044473,1740201043648,-500.0,0.0001104,2]
[354044474,1740201043658,-500.0,0.0001104,2]
[354044475,1740201043667,-504.2,0.0001104,2]
[354044476,1740201043676,-500.0,0.0001104,2]
[354044477,1740201043686,-500.0,0.0001104,2]
[354044478,1740201043695,-500.0,0.0001104,2]
[354044480,1740201043705,-1055.45,0.0001104,2]
[354044482,1740201043714,-500.0,0.0001104,2]
[354044484,1740201043723,-589.18,0.0001104,2]
[354044486,1740201043731,-500.0,0.0001104,2]
[354044488,1740201043741,-500.0,0.0001104,2]
[354044490,1740201043750,-500.0,0.0001104,2]
[354044492,1740201043760,-500.0,0.0001104,2]
[354044494,1740201043768,-675.17,0.0001104,2]
[354044496,1740201043778,-500.0,0.0001104,2]
[354044498,1740201043787,-500.0,0.0001104,2]
[354044500,1740201043796,-500.0,0.0001104,2]
[354044502,1740201043804,-500.0,0.0001104,2]
[354044504,1740201043813,-500.0,0.0001104,2]
[354044506,1740201043823,-500.0,0.0001104,2]
[354044508,1740201043832,-500.0,0.0001104,2]
[354044510,1740201043841,-500.0,0.0001104,2]
[354044512,1740201043850,-500.0,0.0001104,2]
[354044514,1740201043859,-500.0,0.0001104,2]
[354044516,1740201043867,-500.0,0.0001104,2]
[354044518,1740201043876,-500.0,0.0001104,2]
[354044520,1740201043886,-500.0,0.0001104,2]
[354044522,1740201043895,-500.0,0.0001104,2]
[354044523,1740201043904,-500.0,0.0001104,2]
[354044526,1740201043914,-500.0,0.0001104,2]
[354044528,1740201043923,-500.0,0.0001104,2]
[354044529,1740201043932,-500.0,0.0001104,2]
[354044532,1740201043942,-500.0,0.0001104,2]